[Event "Hungarian Youth-ch I 2024"]
[Site "Szolnok"]
[Date "2024.04.03"]
[Round "4.1"]
[White "Bekesi, Aron"]
[Black "Kocsmar, Akos"]
[Result "0-1"]
[ECO "B40"]
[WhiteElo "1783"]
[BlackElo "2029"]
[Annotator "NA RC"]
[PlyCount "80"]
[EventDate "2024.03.31"]
[EventType "swiss"]
[EventCountry "HUN"]
[SourceTitle "playchess.com"]
[Source "ChessBase"]
[SourceQuality "1"]
[TimeControl "5400+30"]

1. e4 {[%emt 0:00:03]} c5 {[%emt 0:00:03]} 2. Nf3 {[%emt 0:00:08]} e6 {[%emt 0:00:05]} 3. d4 {[%emt 0:00:41]} cxd4 {[%emt 0:00:05]} 4. Nxd4 {[%emt 0:00:05]} Nf6 {[%emt 0:00:03]} 5. Nc3 {[%emt 0:00:20]} Nc6 {[%emt 0:00:04]} 6. Bg5 {[%emt 0:01:46]} Bb4 {[%emt 0:00:07]} 7. Nxc6 {[%emt 0:11:02]} bxc6 {[%emt 0:00:52]} 8. Qf3 {[%emt 0:03:28]} e5 {[%emt 0:14:06]} 9. a3 {[%emt 0:13:25]} Be7 {[%emt 0:02:34]} 10. Bc4 {[%emt 0:04:08]} O-O {[%emt 0:03:14]} 11. O-O-O {[%emt 0:08:57]} d6 {[%emt 0:02:20]} 12. Bxf6 {[%emt 0:03:49]} Bxf6 {[%emt 0:00:12]} 13. Qd3 {[%emt 0:01:03]} Be7 {[%emt 0:00:27]} 14. g3 {[%emt 0:03:30]} Rb8 {[%emt 0:03:50]} 15. f4 {[%emt 0:10:48]} Qb6 {[%emt 0:03:30]} 16. Na4 {[%emt 0:03:48]} Qa5 {[%emt 0:01:23]} 17. Bb3 {[%emt 0:01:04]} Ba6 {[%emt 0:11:31]} 18. Qc3 {[%emt 0:05:08]} Qxc3 {[%emt 0:09:42]} 19. Nxc3 {[%emt 0:00:07]} exf4 {[%emt 0:00:02]} 20. gxf4 {[%emt 0:00:42]} Rfd8 {[%emt 0:01:35]} 21. e5 {[%emt 0:04:58]} d5 {[%emt 0:01:00]} 22. Ba4 {[%emt 0:04:29]} Rb6 {[%emt 0:01:52]} 23. f5 {[%emt 0:02:44]} Rdb8 {[%emt 0:04:01]} 24. b4 {[%emt 0:00:44]} Bc8 {[%emt 0:03:13]} 25. Ne2 {[%emt 0:08:43]} Bxf5 {[%emt 0:03:09]} 26. Nd4 {[%emt 0:00:59]} Bd7 {[%emt 0:00:07]} 27. Kb2 {[%emt 0:03:26]} a5 {[%emt 0:00:47]} 28. c3 {[%emt 0:00:29]} R8b7 {[%emt 0:02:24]} 29. Rhf1 {[%emt 0:02:06]} c5 {[%emt 0:04:19]} 30. Bxd7 {[%emt 0:00:47]} Rxd7 {[%emt 0:00:18]} 31. Nf5 {[%emt 0:01:05]} Bf8 {[%emt 0:00:01]} 32. Kc2 {[%emt 0:00:35]} axb4 {[%emt 0:00:22]} 33. axb4 {[%emt 0:00:03]} cxb4 {[%emt 0:00:05]} 34. cxb4 {[%emt 0:00:14]} Rxb4 {[%emt 0:00:06]} 35. Rd4 {[%emt 0:01:05]} Rc7+ {[%emt 0:01:10]} 36. Kd3 {[%emt 0:00:24]} Rb3+ {[%emt 0:00:06]} 37. Ke2 {[%emt 0:00:14]} Rc2+ {[%emt 0:00:19]} 38. Rd2 {[%emt 0:00:12]} Rxd2+ {[%emt 0:00:10]} 39. Kxd2 {[%emt 0:00:05]} Rb2+ {[%emt 0:00:04]} 40. Kd3 {[%emt 0:00:22]} Rxh2 {[%emt 0:00:02]} 0-1

[Event "Hungarian Youth-ch I 2024"]
[Site "Szolnok"]
[Date "2024.04.03"]
[Round "4.2"]
[White "Herpai, Jozsef Matyas"]
[Black "Gathi, Donat"]
[Result "0-1"]
[ECO "C51"]
[WhiteElo "2037"]
[BlackElo "2192"]
[Annotator "RC"]
[PlyCount "100"]
[EventDate "2024.03.31"]
[EventType "swiss"]
[EventCountry "HUN"]
[SourceTitle "playchess.com"]
[Source "ChessBase"]
[SourceQuality "1"]
[TimeControl "5400+30"]

1. e4 {[%emt 0:00:12]} e5 {[%emt 0:00:06]} 2. Nf3 {[%emt 0:00:07]} Nc6 {[%emt 0:00:05]} 3. Bc4 {[%emt 0:00:12]} Bc5 {[%emt 0:00:06]} 4. b4 {[%emt 0:00:06]} Bb6 {[%emt 0:00:04]} 5. a4 {[%emt 0:00:35]} a6 {[%emt 0:00:06]} 6. Nc3 {[%emt 0:00:29]} Nf6 {[%emt 0:06:45]} 7. Nd5 {[%emt 0:00:45]} d6 {[%emt 0:03:13]} 8. Nxb6 {[%emt 0:20:40]} cxb6 {[%emt 0:00:07]} 9. d3 {[%emt 0:02:08]} Nxb4 {[%emt 0:03:04]} 10. c3 {[%emt 0:05:59]} Nc6 {[%emt 0:00:13]} 11. h3 {[%emt 0:03:22]} O-O {[%emt 0:05:15]} 12. Ba3 {[%emt 0:06:02]} Re8 {[%emt 0:24:36]} 13. O-O {[%emt 0:02:16]} d5 {[%emt 0:01:07]} 14. exd5 {[%emt 0:09:42]} Nxd5 {[%emt 0:02:00]} 15. Re1 {[%emt 0:01:28]} Nf4 {[%emt 0:07:54]} 16. d4 {[%emt 0:09:02]} e4 {[%emt 0:01:58]} 17. Qb3 {[%emt 0:05:52]} Qf6 {[%emt 0:04:16]} 18. Bc1 {[%emt 0:05:40]} Be6 {[%emt 0:17:44]} 19. Bxe6 {[%emt 0:03:18]} Rxe6 {[%emt 0:00:24]} 20. Bxf4 {[%emt 0:03:49]} Qxf4 {[%emt 0:00:17]} 21. Ne5 {[%emt 0:04:53]} Nxe5 {[%emt 0:00:42]} 22. dxe5 {[%emt 0:00:04]} Qxe5 {[%emt 0:00:29]} 23. Rad1 {[%emt 0:00:19]} h6 {[%emt 0:02:15]} 24. Rd4 {[%emt 0:03:32]} Qf5 {[%emt 0:00:53]} 25. Qc2 {[%emt 0:02:36]} Rae8 {[%emt 0:03:35]} 26. f3 {[%emt 0:01:05]} Qc5 {[%emt 0:03:23]} 27. Rexe4 {[%emt 0:00:36]} Rxe4 {[%emt 0:00:04]} 28. fxe4 {[%emt 0:00:07]} Rc8 {[%emt 0:00:26]} 29. Qd3 {[%emt 0:01:00]} Qxc3 {[%emt 0:00:16]} 30. Rd8+ {[%emt 0:02:51]} Kh7 {[%emt 0:00:02]} 31. Qxc3 {[%emt 0:00:22]} Rxc3 {[%emt 0:00:03]} 32. Rd7 {[%emt 0:01:48]} Rc4 {[%emt 0:04:24]} 33. Rxf7 {[%emt 0:05:24]} Rxa4 {[%emt 0:00:01]} 34. Rxb7 {[%emt 0:00:32]} b5 {[%emt 0:00:02]} 35. e5 {[%emt 0:00:30]} Kg6 {[%emt 0:00:06]} 36. e6 {[%emt 0:00:26]} Kf6 {[%emt 0:00:03]} 37. e7 {[%emt 0:00:28]} Kf7 {[%emt 0:00:08]} 38. Kf2 {[%emt 0:00:24]} b4 {[%emt 0:00:28]} 39. Kf3 {[%emt 0:00:47]} a5 {[%emt 0:00:23]} 40. e8=Q+ {[%emt 0:00:29]} Kxe8 {[%emt 0:00:02]} 41. Ke3 {[%emt 0:00:30]} Kf8 {[%emt 0:01:13]} 42. Kd4 {[%emt 0:00:25]} b3+ {[%emt 0:02:10]} 43. Kc3 {[%emt 0:00:24]} Ra3 {[%emt 0:02:55]} 44. Kb2 {[%emt 0:00:41]} Ra2+ {[%emt 0:00:06]} 45. Kxb3 {[%emt 0:00:03]} Rxg2 {[%emt 0:00:05]} 46. Ra7 {[%emt 0:00:56]} Rg3+ {[%emt 0:00:14]} 47. Kc4 {[%emt 0:00:03]} Rxh3 {[%emt 0:00:12]} 48. Rxa5 {[%emt 0:00:04]} Re3 {[%emt 0:00:14]} 49. Kd4 {[%emt 0:00:16]} Re1 {[%emt 0:00:13]} 50. Ra7 {[%emt 0:00:08]} Re7 {[%emt 0:00:19]} 0-1

[Event "Hungarian Youth-ch I 2024"]
[Site "Szolnok"]
[Date "2024.04.03"]
[Round "4.3"]
[White "Jankovics, Emod"]
[Black "Szikszai, Bertalan"]
[Result "0-1"]
[ECO "A45"]
[WhiteElo "1699"]
[BlackElo "2312"]
[Annotator "RC"]
[PlyCount "64"]
[EventDate "2024.03.31"]
[EventType "swiss"]
[EventCountry "HUN"]
[SourceTitle "playchess.com"]
[Source "ChessBase"]
[SourceQuality "1"]
[TimeControl "5400+30"]

1. d4 {[%emt 0:00:04]} Nf6 {[%emt 0:04:37]} 2. Nc3 {[%emt 0:00:06]} d5 {[%emt 0:00:46]} 3. Bf4 {[%emt 0:00:08]} a6 {[%emt 0:00:14]} 4. e3 {[%emt 0:00:44]} e6 {[%emt 0:02:42]} 5. a3 {[%emt 0:00:07]} c5 {[%emt 0:02:00]} 6. Nf3 {[%emt 0:03:56]} b5 {[%emt 0:01:47]} 7. Be2 {[%emt 0:10:25]} Bb7 {[%emt 0:04:17]} 8. O-O {[%emt 0:02:24]} Nc6 {[%emt 0:01:59]} 9. Ne5 {[%emt 0:07:44]} Be7 {[%emt 0:01:47]} 10. Qd2 {[%emt 0:08:06]} O-O {[%emt 0:02:52]} 11. Nxc6 {[%emt 0:06:44]} Bxc6 {[%emt 0:00:35]} 12. Rfc1 {[%emt 0:07:16]} Qb6 {[%emt 0:09:38]} 13. Bd3 {[%emt 0:08:51]} c4 {[%emt 0:01:28]} 14. Be2 {[%emt 0:02:47]} a5 {[%emt 0:01:40]} 15. Nd1 {[%emt 0:06:08]} b4 {[%emt 0:13:06]} 16. a4 {[%emt 0:05:33]} Ne4 {[%emt 0:03:38]} 17. Qe1 {[%emt 0:01:00]} b3 {[%emt 0:00:19]} 18. f3 {[%emt 0:04:44]} Nf6 {[%emt 0:05:31]} 19. h3 {[%emt 0:05:11]} bxc2 {[%emt 0:01:07]} 20. Rxc2 {[%emt 0:00:33]} Bxa4 {[%emt 0:04:49]} 21. Rxa4 {[%emt 0:11:14]} Qb3 {[%emt 0:00:12]} 22. Rcxc4 {[%emt 0:00:39]} dxc4 {[%emt 0:00:10]} 23. Rxc4 {[%emt 0:00:04]} Nd5 {[%emt 0:01:55]} 24. Be5 {[%emt 0:02:26]} Bf6 {[%emt 0:05:30]} 25. e4 {[%emt 0:03:14]} Bxe5 {[%emt 0:00:36]} 26. exd5 {[%emt 0:00:29]} exd5 {[%emt 0:00:29]} 27. Rc6 {[%emt 0:02:51]} Bxd4+ {[%emt 0:00:12]} 28. Kf1 {[%emt 0:00:20]} Bxb2 {[%emt 0:01:35]} 29. Rc5 {[%emt 0:00:37]} Bf6 {[%emt 0:00:42]} 30. Qd2 {[%emt 0:00:22]} Rfd8 {[%emt 0:00:15]} 31. Rb5 {[%emt 0:00:30]} Qa3 {[%emt 0:00:31]} 32. Nc3 {[%emt 0:00:42]} Qxc3 0-1

[Event "Hungarian Youth-ch I 2024"]
[Site "Szolnok"]
[Date "2024.04.03"]
[Round "4.4"]
[White "Fule, Simon"]
[Black "Barna, Peter"]
[Result "1-0"]
[ECO "C42"]
[WhiteElo "2262"]
[BlackElo "1702"]
[Annotator "RC"]
[PlyCount "53"]
[EventDate "2024.03.31"]
[EventType "swiss"]
[EventCountry "HUN"]
[SourceTitle "playchess.com"]
[Source "ChessBase"]
[SourceQuality "1"]
[TimeControl "5400+30"]

1. e4 {[%emt 0:02:20]} e5 {[%emt 0:00:06]} 2. Nf3 {[%emt 0:00:08]} Nf6 {[%emt 0:00:07]} 3. Nxe5 {[%emt 0:00:10]} d6 {[%emt 0:00:04]} 4. Nf3 {[%emt 0:00:08]} Nxe4 {[%emt 0:00:04]} 5. d4 {[%emt 0:00:06]} d5 {[%emt 0:00:05]} 6. Bd3 {[%emt 0:00:10]} Bd6 {[%emt 0:00:05]} 7. O-O {[%emt 0:01:03]} O-O {[%emt 0:00:07]} 8. c4 {[%emt 0:00:20]} c6 {[%emt 0:00:03]} 9. h3 {[%emt 0:03:12]} Bf5 {[%emt 0:06:30]} 10. Nc3 {[%emt 0:07:27]} Nxc3 {[%emt 0:04:05]} 11. bxc3 {[%emt 0:00:13]} Bxd3 {[%emt 0:01:21]} 12. Qxd3 {[%emt 0:00:07]} Nd7 {[%emt 0:05:00]} 13. Rb1 {[%emt 0:07:19]} b6 {[%emt 0:02:12]} 14. Bg5 {[%emt 0:17:38]} Nf6 {[%emt 0:09:04]} 15. Ne5 {[%emt 0:08:09]} Rc8 {[%emt 0:00:10]} 16. Bxf6 {[%emt 0:00:18]} gxf6 {[%emt 0:03:27]} 17. Ng4 {[%emt 0:01:19]} Bf4 {[%emt 0:19:00]} 18. Qf5 {[%emt 0:01:31]} Bg5 {[%emt 0:00:18]} 19. f4 {[%emt 0:00:38]} Bh4 {[%emt 0:00:28]} 20. g3 {[%emt 0:01:14]} Qe7 {[%emt 0:06:44]} 21. gxh4 {[%emt 0:00:17]} Kg7 {[%emt 0:00:33]} 22. Rbe1 {[%emt 0:01:23]} Qd6 {[%emt 0:01:08]} 23. Kh2 {[%emt 0:01:57]} h5 {[%emt 0:02:26]} 24. Rg1 {[%emt 0:01:17]} hxg4 {[%emt 0:00:38]} 25. Qxg4+ {[%emt 0:00:06]} Kh6 {[%emt 0:00:25]} 26. Qg7+ {[%emt 0:00:06]} Kh5 {[%emt 0:00:12]} 27. Qh7# {[%emt 0:00:05]} 1-0

[Event "Hungarian Youth-ch I 2024"]
[Site "Szolnok"]
[Date "2024.04.03"]
[Round "4.5"]
[White "Frank, Balint"]
[Black "Gulacsi, Donat Ferenc"]
[Result "1/2-1/2"]
[ECO "E06"]
[WhiteElo "1939"]
[BlackElo "1912"]
[Annotator "RC"]
[PlyCount "80"]
[EventDate "2024.03.31"]
[EventType "swiss"]
[EventCountry "HUN"]
[SourceTitle "playchess.com"]
[Source "ChessBase"]
[SourceQuality "1"]
[TimeControl "5400+30"]

1. d4 {[%emt 0:00:05]} d5 {[%emt 0:08:03]} 2. c4 {[%emt 0:00:15]} e6 {[%emt 0:00:08]} 3. Nf3 {[%emt 0:00:06]} Nf6 {[%emt 0:02:33]} 4. g3 {[%emt 0:01:18]} Be7 {[%emt 0:04:21]} 5. Bg2 {[%emt 0:00:15]} O-O {[%emt 0:03:50]} 6. O-O {[%emt 0:01:03]} Ne4 {[%emt 0:07:25]} 7. Bf4 {[%emt 0:10:38]} f5 {[%emt 0:05:40]} 8. h4 {[%emt 0:04:22]} c6 {[%emt 0:06:34]} 9. Ne5 {[%emt 0:01:32]} Nd7 {[%emt 0:10:25]} 10. Nd2 {[%emt 0:03:49]} g5 {[%emt 0:11:40]} 11. hxg5 {[%emt 0:23:18]} Bxg5 {[%emt 0:05:24]} 12. Nxe4 {[%emt 0:09:28]} Bxf4 {[%emt 0:06:08]} 13. gxf4 {[%emt 0:02:01]} fxe4 {[%emt 0:01:10]} 14. e3 {[%emt 0:00:12]} Nxe5 {[%emt 0:02:12]} 15. dxe5 {[%emt 0:02:03]} Qh4 {[%emt 0:10:02]} 16. f3 {[%emt 0:02:18]} Kh8 {[%emt 0:03:13]} 17. fxe4 {[%emt 0:06:11]} Rg8 18. exd5 {[%emt 0:20:37]} exd5 {[%emt 0:03:20]} 19. e6 {[%emt 0:00:30]} Bxe6 {[%emt 0:03:55]} 20. Qd4+ {[%emt 0:00:07]} Rg7 {[%emt 0:00:05]} 21. f5 {[%emt 0:00:38]} Qxd4 {[%emt 0:02:10]} 22. exd4 {[%emt 0:00:09]} Rag8 {[%emt 0:00:05]} 23. fxe6 {[%emt 0:06:26]} Rxg2+ {[%emt 0:00:05]} 24. Kh1 {[%emt 0:00:07]} R2g6 {[%emt 0:00:23]} 25. Rf2 {[%emt 0:00:07]} Rxe6 {[%emt 0:00:20]} 26. cxd5 {[%emt 0:01:09]} cxd5 {[%emt 0:01:13]} 27. Rc1 {[%emt 0:01:21]} b6 {[%emt 0:02:10]} 28. Rc7 {[%emt 0:00:37]} Rh6+ {[%emt 0:00:56]} 29. Rh2 {[%emt 0:00:10]} Rxh2+ {[%emt 0:00:07]} 30. Kxh2 {[%emt 0:00:08]} Rg4 {[%emt 0:00:06]} 31. Rxa7 {[%emt 0:00:40]} Rxd4 {[%emt 0:00:07]} 32. Kg3 {[%emt 0:00:26]} Rd2 {[%emt 0:01:38]} 33. b4 {[%emt 0:01:09]} Re2 {[%emt 0:00:49]} 34. Kf3 {[%emt 0:00:56]} Re4 {[%emt 0:00:30]} 35. a3 {[%emt 0:02:13]} h5 {[%emt 0:00:35]} 36. Rd7 {[%emt 0:00:19]} Rd4 {[%emt 0:00:28]} 37. Ke3 {[%emt 0:00:52]} Rd1 {[%emt 0:00:08]} 38. Rd6 {[%emt 0:00:10]} Ra1 {[%emt 0:00:49]} 39. Rxd5 {[%emt 0:00:54]} Rxa3+ {[%emt 0:00:08]} 40. Kf4 {[%emt 0:00:55]} Rc3 {[%emt 0:00:53]} 1/2-1/2

[Event "Hungarian Youth-ch I 2024"]
[Site "Szolnok"]
[Date "2024.04.03"]
[Round "4.6"]
[White "Foldes, Marton Gabor"]
[Black "Kolimar, Kristof Pal"]
[Result "0-1"]
[ECO "B50"]
[WhiteElo "2162"]
[BlackElo "2282"]
[Annotator "RC"]
[PlyCount "114"]
[EventDate "2024.03.31"]
[EventType "swiss"]
[EventCountry "HUN"]
[SourceTitle "playchess.com"]
[Source "ChessBase"]
[SourceQuality "1"]
[TimeControl "5400+30"]

1. e4 {[%emt 0:00:02]} c5 {[%emt 0:00:05]} 2. Nf3 {[%emt 0:00:05]} d6 {[%emt 0:00:09]} 3. Nc3 {[%emt 0:00:17]} a6 {[%emt 0:00:04]} 4. g3 {[%emt 0:00:22]} g6 {[%emt 0:01:02]} 5. Bg2 {[%emt 0:00:47]} Bg7 {[%emt 0:00:19]} 6. O-O {[%emt 0:03:27]} Nc6 {[%emt 0:02:17]} 7. d3 {[%emt 0:01:49]} Bg4 {[%emt 0:07:01]} 8. h3 {[%emt 0:02:00]} Bxf3 {[%emt 0:00:04]} 9. Bxf3 {[%emt 0:01:21]} Nf6 {[%emt 0:00:11]} 10. Be3 {[%emt 0:09:41]} Nd7 {[%emt 0:00:42]} 11. a4 {[%emt 0:03:21]} Rb8 {[%emt 0:07:06]} 12. Rb1 {[%emt 0:14:37]} Nd4 {[%emt 0:06:08]} 13. Bg2 {[%emt 0:00:17]} b5 {[%emt 0:00:21]} 14. axb5 {[%emt 0:00:19]} axb5 {[%emt 0:00:10]} 15. Ne2 {[%emt 0:00:33]} b4 {[%emt 0:00:38]} 16. Qd2 {[%emt 0:20:13]} O-O {[%emt 0:09:23]} 17. Nxd4 {[%emt 0:10:03]} cxd4 {[%emt 0:00:09]} 18. Bh6 {[%emt 0:00:04]} Qb6 {[%emt 0:07:33]} 19. Bxg7 {[%emt 0:00:42]} Kxg7 {[%emt 0:00:02]} 20. b3 {[%emt 0:05:25]} Rfc8 {[%emt 0:05:33]} 21. f4 {[%emt 0:00:54]} Qc5 {[%emt 0:02:55]} 22. Rf2 {[%emt 0:00:13]} Ra8 {[%emt 0:05:32]} 23. e5 {[%emt 0:04:11]} Ra2 {[%emt 0:00:55]} 24. exd6 {[%emt 0:00:09]} Qxd6 {[%emt 0:02:41]} 25. Rc1 {[%emt 0:00:47]} Rc3 {[%emt 0:04:29]} 26. Qe1 {[%emt 0:01:23]} Qc5 {[%emt 0:05:44]} 27. f5 {[%emt 0:13:35]} gxf5 {[%emt 0:09:46]} 28. Qd2 {[%emt 0:00:23]} h6 {[%emt 0:01:57]} 29. g4 {[%emt 0:00:23]} fxg4 {[%emt 0:02:00]} 30. hxg4 {[%emt 0:01:37]} Qg5 {[%emt 0:00:52]} 31. Qxg5+ {[%emt 0:00:23]} hxg5 {[%emt 0:00:07]} 32. Rf5 {[%emt 0:00:03]} f6 {[%emt 0:06:37]} 33. Rd5 {[%emt 0:04:11]} Nc5 {[%emt 0:00:20]} 34. Re1 {[%emt 0:01:20]} e6 {[%emt 0:00:31]} 35. Rxd4 {[%emt 0:00:11]} Rcxc2 {[%emt 0:00:54]} 36. Bh1 {[%emt 0:00:50]} Ra7 {[%emt 0:02:27]} 37. Rd1 {[%emt 0:01:24]} Rb2 {[%emt 0:01:48]} 38. Rxb4 {[%emt 0:00:12]} Nxd3 {[%emt 0:00:21]} 39. Rd4 {[%emt 0:01:43]} Nf4 {[%emt 0:00:59]} 40. Rd7+ {[%emt 0:00:26]} Rxd7 41. Rxd7+ {[%emt 0:00:01]} Kf8 {[%emt 0:00:34]} 42. Rb7 {[%emt 0:01:11]} Ne2+ {[%emt 0:00:38]} 43. Kf2 {[%emt 0:00:02]} Nc1+ {[%emt 0:00:59]} 44. Ke1 {[%emt 0:01:01]} Rxb3 {[%emt 0:00:39]} 45. Rc7 {[%emt 0:00:26]} Nd3+ {[%emt 0:00:39]} 46. Ke2 {[%emt 0:00:34]} Ne5 {[%emt 0:01:52]} 47. Ra7 {[%emt 0:00:31]} Rb2+ {[%emt 0:00:36]} 48. Kf1 {[%emt 0:00:28]} Rb1+ {[%emt 0:00:29]} 49. Kg2 {[%emt 0:00:01]} Nxg4 {[%emt 0:00:10]} 50. Ra6 {[%emt 0:00:26]} Kf7 {[%emt 0:00:40]} 51. Ra7+ {[%emt 0:00:11]} Kg6 {[%emt 0:00:03]} 52. Ra6 {[%emt 0:00:12]} Re1 {[%emt 0:00:31]} 53. Kg3 {[%emt 0:01:22]} Rxh1 {[%emt 0:00:17]} 54. Kxg4 {[%emt 0:00:02]} f5+ {[%emt 0:00:12]} 55. Kf3 {[%emt 0:00:38]} Kf6 {[%emt 0:00:04]} 56. Ra8 {[%emt 0:00:53]} g4+ {[%emt 0:00:55]} 57. Kg2 {[%emt 0:00:06]} Rc1 {[%emt 0:00:29]} 0-1

[Event "Hungarian Youth-ch I 2024"]
[Site "Szolnok"]
[Date "2024.04.03"]
[Round "4.7"]
[White "Szegedy, Matyas"]
[Black "Turcsanyi, Vince Gergo"]
[Result "1/2-1/2"]
[ECO "C72"]
[WhiteElo "2177"]
[BlackElo "2247"]
[Annotator "RC"]
[PlyCount "109"]
[EventDate "2024.03.31"]
[EventType "swiss"]
[EventCountry "HUN"]
[SourceTitle "playchess.com"]
[Source "ChessBase"]
[SourceQuality "1"]
[TimeControl "5400+30"]

1. e4 {[%emt 0:04:08]} e5 {[%emt 0:00:25]} 2. Nf3 {[%emt 0:00:16]} Nc6 {[%emt 0:00:06]} 3. Bb5 {[%emt 0:00:29]} a6 {[%emt 0:00:06]} 4. Ba4 {[%emt 0:00:05]} d6 {[%emt 0:00:12]} 5. O-O {[%emt 0:00:28]} Bd7 {[%emt 0:00:10]} 6. c3 {[%emt 0:01:03]} g5 {[%emt 0:00:24]} 7. d4 {[%emt 0:02:19]} g4 {[%emt 0:00:49]} 8. Ne1 {[%emt 0:00:21]} h5 {[%emt 0:00:07]} 9. f4 {[%emt 0:09:15]} exd4 {[%emt 0:00:14]} 10. cxd4 {[%emt 0:00:17]} d5 {[%emt 0:00:21]} 11. exd5 {[%emt 0:06:30]} Nce7 {[%emt 0:01:13]} 12. Nc3 {[%emt 0:03:02]} Nf6 {[%emt 0:00:55]} 13. Nd3 {[%emt 0:05:36]} Bxa4 {[%emt 0:15:42]} 14. Qxa4+ {[%emt 0:00:23]} b5 {[%emt 0:00:30]} 15. Qb3 {[%emt 0:02:34]} Bg7 {[%emt 0:05:49]} 16. Ne5 {[%emt 0:13:22]} O-O {[%emt 0:08:33]} 17. f5 {[%emt 0:08:44]} Qd6 {[%emt 0:10:32]} 18. Bg5 {[%emt 0:19:23]} Nexd5 {[%emt 0:05:21]} 19. Rac1 {[%emt 0:05:32]} Nxc3 {[%emt 0:09:53]} 20. bxc3 {[%emt 0:00:11]} c5 {[%emt 0:00:45]} 21. Bf4 {[%emt 0:08:51]} c4 {[%emt 0:10:30]} 22. Qc2 {[%emt 0:01:35]} Qb6 {[%emt 0:07:13]} 23. h3 {[%emt 0:01:19]} Rfe8 {[%emt 0:02:19]} 24. Rce1 {[%emt 0:02:48]} Nd5 {[%emt 0:01:23]} 25. Qf2 {[%emt 0:03:18]} Nxc3 {[%emt 0:02:59]} 26. hxg4 {[%emt 0:00:06]} hxg4 {[%emt 0:00:17]} 27. Bg3 {[%emt 0:00:12]} Nd5 {[%emt 0:02:21]} 28. f6 {[%emt 0:00:11]} Nxf6 {[%emt 0:05:25]} 29. Nd7 {[%emt 0:00:34]} Nxd7 {[%emt 0:00:59]} 30. Qxf7+ {[%emt 0:00:06]} Kh7 {[%emt 0:00:04]} 31. Rxe8 {[%emt 0:01:27]} Rxe8 {[%emt 0:00:10]} 32. Qxe8 {[%emt 0:00:30]} Qxd4+ {[%emt 0:01:02]} 33. Bf2 {[%emt 0:00:36]} Qd5 {[%emt 0:00:05]} 34. Qe2 {[%emt 0:00:42]} Nf6 {[%emt 0:02:20]} 35. Re1 {[%emt 0:00:30]} Qf5 36. Qe7 {[%emt 0:00:42]} Qd3 {[%emt 0:05:01]} 37. Re6 {[%emt 0:00:46]} g3 {[%emt 0:02:54]} 38. Bxg3 {[%emt 0:00:20]} Qxg3 {[%emt 0:01:36]} 39. Rxf6 {[%emt 0:00:05]} Qd3 {[%emt 0:00:42]} 40. Rf3 {[%emt 0:00:26]} Qb1+ {[%emt 0:00:29]} 41. Kh2 {[%emt 0:00:13]} Qg6 {[%emt 0:00:27]} 42. Rh3+ {[%emt 0:00:52]} Kg8 {[%emt 0:00:00]} 43. Qd8+ {[%emt 0:00:27]} Kf7 {[%emt 0:00:01]} 44. Qd7+ {[%emt 0:00:51]} Kg8 {[%emt 0:00:02]} 45. Qd5+ {[%emt 0:00:27]} Qf7 {[%emt 0:00:14]} 46. Qd8+ {[%emt 0:00:59]} Qf8 {[%emt 0:00:05]} 47. Qd5+ {[%emt 0:00:30]} Qf7 {[%emt 0:00:02]} 48. Qe4 {[%emt 0:00:23]} Qc7+ {[%emt 0:03:06]} 49. Kh1 {[%emt 0:00:05]} Qe5 {[%emt 0:00:13]} 50. Qh7+ {[%emt 0:01:05]} Kf8 {[%emt 0:00:01]} 51. Rf3+ {[%emt 0:00:31]} Ke7 {[%emt 0:00:00]} 52. Rf1 {[%emt 0:00:32]} c3 {[%emt 0:00:34]} 53. Qh4+ {[%emt 0:00:22]} Bf6 {[%emt 0:00:07]} 54. Qh7+ {[%emt 0:00:29]} Bg7 {[%emt 0:00:05]} 55. Qh4+ {[%emt 0:00:08]} 1/2-1/2